Workbook

Sheet 2.aperturaMusei-GEP
A2: APERTURA DI TUTTI I MUSEI DALLE 20 ALLE 24 PER UNA NOTTE COINCIDENTE CON LE GIORNATE EUROPEE DEL PATRIMONIO 2014
A4: NUMERO | B4: Sito | C4: RISPOSTO | D4: EMAIL | E4: REGIONE | F4: N. partecipanti Area III | G4: Costo unitario lordo dipendente Area III comprensivo degli oneri dell'Amm.ne | H4: Totale Costo complessivo lordo dipendenti Area III comprensivo degli oneri dell'Amm.ne | I4: N. partecipanti Area I e II | J4: Costo unitario lordo dipendente Area I e II comprensivo degli oneri dell'Amm.ne | K4: Totale Costo complessivo lordo dipendenti Area I e II comprensivo degli oneri dell'Amm.ne | L4: Area I II e III Costo totale unitario complessivo per singola giornata di apertura | M4: N. aperture | N4: Costo complessivo per turno di 4 ore | O4: ORARIO | P4: NOTE
A5: 1 | B5: Soprintendenza BSAE dell'Abruzzo L'AQUILA | D5: sbsae-abr@beniculturali.it | E5: ABRUZZO | F5: 5 | G5: 132.7 | H5: =F5*G5 -> 663.5 | I5: 19 | J5: 106.16 | K5: =I5*J5 -> 2017.04 | L5: =H5+K5 -> 2680.54 | M5: 1 | N5: =L5*M5 -> 2680.54 | O5: ore 20-24 | P5: Museo di Arte Sacra, Abbazia S.Spirito, Abbazia di S. Clemente, Museo D'Annunzio, Taverna Ducali
A6: 2 | B6: Soprintendenza per i beni archeologici dell'Abruzzo CHIETI | E6: ABRUZZO | G6: 132.7 | H6: 0 | J6: 106.16 | K6: 0 | L6: 0 | M6: 1 | N6: 0 | P6: Non partecipano
A7: 3 | B7: Soprintendenza BSAE della Basilicata MATERA | D7: sbsae-bas@beniculturali.it | E7: BASILICATA | F7: 2 | G7: 132.7 | H7: 265.4 | I7: 11 | J7: 106.16 | K7: 1167.76 | L7: 1433.16 | M7: 1 | N7: 1433.16 | O7: ore 20-24 | P7: Museo d'Arte Medievale e Moderna della Basilicata
A8: 4 | B8: Soprintendenza per i beni archeologici della Basilicata POTENZA | D8: sba-bas@beniculturali.it | E8: BASILICATA | F8: 11 | G8: 132.7 | H8: 1459.7 | I8: 27 | J8: 106.16 | K8: 2866.32 | L8: 4326.02 | M8: 1 | N8: 4326.02 | O8: ore 20-24 | P8: Museo Archeologico Dinu Adamesteanu Potenza,Museo di Grumento,Museo di Muro Lucano,Museo di Melfi,Museo di Venosa,Palazzo di Lieto Maratea,Museo Ridola Matera,Palazzo Ducale di Tricarico,Museo di Metaponto,Museo di Policoro,Convento S'Antonio di Rivello
A9: 5 | B9: Soprintendenza BSAE della Calabria COSENZA | E9: CALABRIA | F9: 4 | G9: 132.7 | H9: 530.8 | I9: 8 | J9: 106.16 | K9: 849.28 | L9: 1380.08 | M9: 1 | N9: 1380.08
A10: 6 | B10: Soprintendenza per i beni archeologici della Calabria R.CALABRIA | D10: sba-cal@beniculturali.it | E10: CALABRIA | F10: 8 | G10: 132.7 | H10: 1061.6 | I10: 43 | J10: 106.16 | K10: 4564.88 | L10: 5626.48 | M10: 1 | N10: 5626.48 | P10: Museo Arch. di RC, Locri, Sibari, Vibo Valentia, Crotone
A11: 7 | B11: Soprintendenza BSAE per le prov. di SALERNO e AVELLINO | D11: sbsae-sa@beniculturali.it | E11: CAMPANIA | F11: 2 | G11: 132.7 | H11: 265.4 | I11: 15 | J11: 106.16 | K11: 1592.4 | L11: 1857.8 | M11: 1 | N11: 1857.8 | O11: ore 20-24 | P11: Museo Diocesano SA, Dogana dei Grani di Atripalda (AV)
A12: 8 | B12: Soprintendenza BAP per le prov. di SALERNO e AVELLINO | D12: sbap-sa@beniculturali.it | E12: CAMPANIA | F12: 10 | G12: 132.7 | H12: 1327 | I12: 46 | J12: 106.16 | K12: 4883.36 | L12: 6210.36 | M12: 1 | N12: 6210.36 | P12: Certosa di S.Lorenzo, Carcere Borbonico di AV, museo virtuale della Scuola medica salernitana, complesso mon. Di S.Pietro a Corte in SA
A13: 9 | B13: Soprintendenza BAPSAE per le prov. di CASERTA e BENEVENTO | E13: CAMPANIA | G13: 132.7 | H13: 0 | J13: 106.16 | K13: 0 | L13: 0 | M13: 1 | N13: 0
A14: 10 | B14: Soprintendenza BAPSAE Napoli e provincia NAPOLI | D14: sbapsae-na@beniculturali.it | E14: CAMPANIA | F14: 1 | G14: 132.7 | H14: 132.7 | I14: 30 | J14: 106.16 | K14: 3184.8 | L14: 3317.5 | M14: 1 | N14: 3317.5 | P14: Palazzo Reale di Napoli
A15: 11 | B15: Soprintendenza per i beni archeologici di NAPOLI | C15: Sì | E15: CAMPANIA | F15: 13 | G15: 132.7 | H15: 1725.1 | I15: 78 | J15: 106.16 | K15: 8280.48 | L15: 10005.58 | M15: 1 | N15: 10005.58 | O15: Museo Archeo 20-24 Museo Nola 20-24 | P15: Museo Naz.le Archeo e Museo Nola
A16: 12 | B16: Soprintendenza per i beni archeologici per le prov. SA, AV, BN e CE SALERNO | C16: Sì | E16: CAMPANIA | F16: 25 | G16: 132.7 | H16: 3317.5 | I16: 231 | J16: 106.16 | K16: 24522.96 | L16: 27840.46 | M16: 1 | N16: 27840.46
A17: 13 | B17: Soprintendenza BAP PARMA e PIACENZA | D17: sbap-pr@beniculturali.it | E17: EMILIA - ROMAGNA | F17: 2 | G17: 132.7 | H17: 265.4 | I17: 6 | J17: 106.16 | K17: 636.96 | L17: 902.36 | M17: 1 | N17: 902.36 | O17: ore 20-24 | P17: Castello di Torrechiara
A18: 14 | B18: Soprintendenza BSAE per le prov. di BO, FE, FC, RA e RN BOLOGNA | D18: sbsae-bo@beniculturali.it | E18: EMILIA - ROMAGNA | F18: 5 | G18: 132.7 | H18: 663.5 | I18: 37 | J18: 106.16 | K18: 3927.92 | L18: 4591.42 | M18: 1 | N18: 4591.42 | O18: ore 20-24 | P18: Pinacoteca di BO, Palazzo Pepoli, Penacoteca Ferrara, Palazzo Milzetti
A19: 15 | B19: Soprintendenza BSAE per le prov. di PARMA e PIACENZA | D19: sbsae-pr@beniculturali.it | E19: EMILIA - ROMAGNA | F19: 3 | G19: 132.7 | H19: 398.1 | I19: 18 | J19: 106.16 | K19: 1910.88 | L19: 2308.98 | M19: 1 | N19: 2308.98 | P19: Galleria Nazionale, Teatro Farnese, Camera di S.Paolo, Antica Spezieria di S. Giovanni
A20: 16 | B20: Soprintendenza BAP per le prov. di RA, FE, FC e RN RAVENNA | C20: si | E20: EMILIA - ROMAGNA | F20: 5 | G20: 132.7 | H20: 663.5 | I20: 34 | J20: 106.16 | K20: 3609.44 | L20: 4272.94 | M20: 1 | N20: 4272.94 | P20: Museo Naz.le Ravenna, Museo Pomposiano e complesso Abaziale di Pomposa, Museo di Casa Romei
A21: 17 | B21: Soprintendenza BSAE per le prov. di MODENA e REGGIO EMILIA | E21: EMILIA - ROMAGNA | G21: 132.7 | H21: 0 | J21: 106.16 | K21: 0 | L21: 0 | M21: 1 | N21: 0 | P21: Solo Giornata Nazionale per il Restauro
A22: 18 | B22: Soprintendenza per i beni archeologici dell'Emilia Romagna BOLOGNA | D22: sba-ero.personale@beniculturali.it | E22: EMILIA - ROMAGNA | F22: 11 | G22: 132.7 | H22: 1459.7 | I22: 31 | J22: 106.16 | K22: 3290.96 | L22: 4750.66 | M22: 1 | N22: 4750.66 | P22: Museo Archeologico Ferrara Museo N.le Etrusco di Marzabotto Museo Archeologico Parma Museoa Arch. N.le di Sarsina
A23: 19 | B23: Soprintendenza BSAE per il Friuli Venezia Giulia TRIESTE | D23: sbsae-fvg@beniculturali.it | E23: FRIULI VENEZIA GIULIA | F23: 1 | G23: 132.7 | H23: 132.7 | I23: 13 | J23: 106.16 | K23: 1380.08 | L23: 1512.78 | M23: 1 | N23: 1512.78 | O23: fino alle 23.30 | P23: Museo Storico del Castello di Miramare
A24: 20 | B24: Soprintendenza per i beni archeologici del Friuli Venezia Giulia TRIESTE | D24: sba-fvg@beniculturali.it | E24: FRIULI VENEZIA GIULIA | F24: 4 | G24: 132.7 | H24: 530.8 | I24: 23 | J24: 106.16 | K24: 2441.68 | L24: 2972.48 | M24: 1 | N24: 2972.48 | P24: MAN Aquileia, MAN Cividale
A25: 21 | B25: Opificio delle Pietre Dure | D25: opd@beniculturali.it | E25: TOSCANA | F25: 1 | G25: 132.7 | H25: =F25*G25 -> 132.7 | I25: 9 | J25: 106.16 | K25: =I25*J25 -> 955.44 | L25: =H25+K25 -> 1088.14 | M25: 1 | N25: =L25*M25 -> 1088.14 | O25: ore 20-24
A26: 22 | B26: Istituto centrale per la demoetnoantropologia ROMA | D26: ic-d@beniculturali.it | E26: LAZIO | F26: 2 | G26: 132.7 | H26: 265.4 | I26: 9 | J26: 106.16 | K26: 955.44 | L26: 1220.84 | M26: 1 | N26: 1220.84 | O26: ore 20-24
A27: 23 | B27: Soprintendenza BAP per il Comune di ROMA | E27: LAZIO | G27: 132.7 | H27: 0 | J27: 106.16 | K27: 0 | L27: 0 | M27: 1 | N27: 0 | P27: Partecipano solo all'apertura San Michele
A28: 24 | B28: Soprintendenza BAP per le prov. di RM, FR, LT, RI, VT ROMA | D28: sbap-laz@beniculturali.it | E28: LAZIO | F28: 5 | G28: 132.7 | H28: 663.5 | I28: 50 | J28: 106.16 | K28: 5308 | L28: 5971.5 | M28: 1 | N28: 5971.5 | P28: Villa d'Este, Pal.Farnese,Pal.Altieri, Villa Lante, Villa Odescalchi
A29: 25 | B29: Soprintendenza alla Galleria nazionale d'arte moderna e contemporanea ROMA | D29: s-gnam@beniculturali.it | E29: LAZIO | F29: 1 | G29: 132.7 | H29: 132.7 | I29: 20 | J29: 106.16 | K29: 2123.2 | L29: 2255.9 | M29: 1 | N29: 2255.9
A30: 26 | B30: Istituto nazionale per la grafica ROMA | D30: in-g@beniculturali.it | E30: LAZIO | F30: 2 | G30: 132.7 | H30: 265.4 | I30: 9 | J30: 106.16 | K30: 955.44 | L30: 1220.84 | M30: 1 | N30: 1220.84 | O30: Palazzo Poli ore 20,00-24,00 | P30: 2 visite guidate alla mostra di P.Nini Santoro e un concerto jazz
A31: 27 | B31: Museo nazionale d'arte orientale ROMA | D31: mn-ao@beniculturali.it | E31: LAZIO | F31: 1 | G31: 132.7 | H31: 132.7 | I31: 3 | J31: 106.16 | K31: 318.48 | L31: 451.18 | M31: 1 | N31: 451.18
A32: 28 | B32: Soprintendenza per i beni archeologici del Lazio ROMA | D32: sba-laz@beniculturali.it | E32: LAZIO | F32: 8 | G32: 132.7 | H32: 1061.6 | I32: 68 | J32: 106.16 | K32: 7218.88 | L32: 8280.48 | M32: 1 | N32: 8280.48 | P32: Cassino, Formia, Minturno, Nemi, Palestrina, Sperlonga, Villa Adriana, Villa di Orazio Licenza
A33: 29 | B33: Soprintendenza speciale per i beni archeologici di ROMA | D33: ssba-rm@beniculturali.it | E33: LAZIO | F33: 2 | G33: 132.7 | H33: 265.4 | I33: 40 | J33: 106.16 | K33: 4246.4 | L33: 4511.8 | M33: 1 | N33: 4511.8 | O33: Colosseo e Museo Nazionale Romano sede delle Terme di Diocleziano | P33: Colosseo e Museo Nazionale Romano sede delle Terme di Diocleziano
A34: 30 | B34: Soprintendenza al Museo nazionale preist. ed etnogr. L. Pigorini ROMA | D34: s-mnpe@beniculturali.it | E34: LAZIO | F34: 2 | G34: 132.7 | H34: 265.4 | I34: 11 | J34: 106.16 | K34: 1167.76 | L34: 1433.16 | M34: 1 | N34: 1433.16
A35: 31 | B35: Soprintendenza per i beni archeologici dell'Etruria meridionale ROMA | D35: sba-em@beniculturali.it | E35: LAZIO | F35: 7 | G35: 132.7 | H35: 928.9 | I35: 134 | J35: 106.16 | K35: 14225.44 | L35: 15154.34 | M35: 1 | N35: 15154.34
A36: 32 | B36: Soprintendenza per i BAP della Liguria GENOVA | D36: sbap-lig@beniculturali.it | E36: LIGURIA | F36: 1 | G36: 132.7 | H36: =F36*G36 -> 132.7 | I36: 22 | J36: 106.16 | K36: =I36*J36 -> 2335.52 | L36: =H36+K36 -> 2468.22 | M36: 1 | N36: =L36*M36 -> 2468.22 | P36: Museo Palazzo Reale
A37: 33 | B37: Soprintendenza BSAE della Liguria GENOVA | D37: sbsae-lig@beniculturali.it | E37: LIGURIA | F37: 1 | G37: 132.7 | H37: 132.7 | I37: 9 | J37: 106.16 | K37: 955.44 | L37: 1088.14 | M37: 1 | N37: 1088.14
A38: 34 | B38: Soprintendenza per i beni archeologici della Liguria GENOVA | D38: sba-lig@beniculturali.it | E38: LIGURIA | F38: 0 | G38: 132.7 | H38: 0 | I38: 11 | J38: 106.16 | K38: 1167.76 | L38: 1167.76 | M38: 1 | N38: 1167.76 | O38: ore 20-24 | P38: Museo Preistorico dei Balzi Rossi e Museo Archeo di Chiavari
A39: 35 | B39: Soprintendenza BAP per le prov. di BS, CR e MN BRESCIA | E39: LOMBARDIA | G39: 132.7 | H39: 0 | J39: 106.16 | K39: 0 | L39: 0 | M39: 1 | N39: 0 | P39: Partecipano solo all'apertura serale de venerdì sera
A40: 36 | B40: Soprintendenza BAP prov. NO, AL, Verb. Cusio Ossola - NOVARA | D40: sbap-no@beniculturali.it | E40: PIEMONTE | F40: 1 | G40: 132.7 | H40: 132.7 | I40: 3 | J40: 106.16 | K40: 318.48 | L40: 451.18 | M40: 1 | N40: 451.18 | P40: Forte Gavi
A41: 37 | B41: Soprintendenza BSAE per le prov. di MN, BS e CR MANTOVA | D41: sbsae-mn@beniculturali.it | E41: LOMBARDIA | F41: 1 | G41: 132.7 | H41: 132.7 | I41: 25 | J41: 106.16 | K41: 2654 | L41: 2786.7 | M41: 1 | N41: 2786.7 | O41: ore 20-24 | P41: Museo di Palazzo Ducale
A42: 38 | B42: Soprintendenza BSAE per le prov. di MI, BG, CO, LC, LO, MZ, PV, SO, VA MILANO | D42: sbsae-mi@beniculturali.it | E42: LOMBARDIA | F42: 3 | G42: 132.7 | H42: 398.1 | I42: 40 | J42: 106.16 | K42: 4246.4 | L42: 4644.5 | M42: 1 | N42: 4644.5
A43: 39 | B43: Soprintendenza per i beni archeologici della Lombardia MILANO | D43: sba-lom@beniculturali.it | E43: LOMBARDIA | F43: 6 | G43: 132.7 | H43: 796.2 | I43: 27 | J43: 106.16 | K43: 2866.32 | L43: 3662.52 | M43: 1 | N43: 3662.52
A44: 40 | B44: Soprintendenza BAP delle Marche ANCONA | D44: sbap-mar@beniculturali.it | E44: MARCHE | F44: 1 | G44: 132.7 | H44: 132.7 | I44: 5 | J44: 106.16 | K44: 530.8 | L44: 663.5 | M44: 1 | N44: 663.5 | O44: ore 20-14 | P44: Rocca roveresca Senigallia
A45: 41 | B45: Soprintendenza BSAE delle Marche URBINO | D45: sbsae-mar@beniculturali.it | E45: MARCHE | F45: 2 | G45: 132.7 | H45: 265.4 | I45: 36 | J45: 106.16 | K45: 3821.76 | L45: 4087.16 | M45: 1 | N45: 4087.16 | P45: Palazzo Ducale di Urbino-Galleria Nazionale delle Marche e Rocca Demaniale di Gradara
A46: 42 | B46: Soprintendenza per i beni archeologici delle Marche ANCONA | D46: sba-mar@beniculturali.it | E46: MARCHE | F46: 4 | G46: 132.7 | H46: 530.8 | I46: 31 | J46: 106.16 | K46: 3290.96 | L46: 3821.76 | M46: 1 | N46: 3821.76 | P46: MA delle MArcheAncona, MA Statale di Ascoli, Antiquarium di Numana, MA di Arcevia, MA di Urbisaglia, MA di Cingoli
A47: 43 | B47: Direzione Regionale per i Beni Culturali e paesaggistici del Molise | D47: dr-mol@beniculturali.it | E47: MOLISE | F47: 9 | G47: 132.7 | H47: =F47*G47 -> 1194.3 | I47: 6 | J47: 106.16 | K47: =I47*J47 -> 636.96 | L47: =H47+K47 -> 1831.26 | M47: 1 | N47: =L47*M47 -> 1831.26 | O47: ore 20-24 | P47: Apertura Palazzo Iapoce
A48: 44 | B48: Soprintendenza BSAE del Molise CAMPOBASSO | D48: sbsae-mol@beniculturali.it | E48: MOLISE | F48: 15 | G48: 132.7 | H48: 1990.5 | I48: 5 | J48: 106.16 | K48: 530.8 | L48: 2521.3 | M48: 1 | N48: 2521.3 | P48: Castello di Gambatesa, Palazzo Pistilli di CB, Castello Pandone di Venafro e Museo Naz.le del Molise
A49: 45 | B49: Soprintendenza BAP del Molise CAMPOBASSO | E49: MOLISE | G49: 132.7 | H49: 0 | J49: 106.16 | K49: 0 | L49: 0 | M49: 1 | N49: 0
A50: 46 | B50: Soprintendenza per i beni archeologici del Molise CAMPOBASSO | D50: sba-mol@beniculturali.it | E50: MOLISE | F50: 18 | G50: 132.7 | H50: 2388.6 | I50: 20 | J50: 106.16 | K50: 2123.2 | L50: 4511.8 | M50: 1 | N50: 4511.8 | O50: ore 20-24 | Q50: X
A51: 47 | B51: Soprintendenza BSAE del Piemonte TORINO | D51: sbsae-pie@beniculturali.it | E51: PIEMONTE | F51: 3 | G51: 132.7 | H51: 398.1 | I51: 17 | J51: 106.16 | K51: 1804.72 | L51: 2202.82 | M51: 1 | N51: 2202.82 | P51: Armeria Reale, Villa della Regina, Palazzo Carignano
A52: 48 | B52: Soprintendenza BAP TO, CN, AT, VC, BI TORINO | D52: sbap-to@beniculturali.it | E52: PIEMONTE | F52: 5 | G52: 132.7 | H52: 663.5 | I52: 36 | J52: 106.16 | K52: 3821.76 | L52: 4485.26 | M52: 1 | N52: 4485.26 | O52: ore 20-24 | P52: Palazzo Reale, Castello di Agliè, Castello di Rocconigi, Palazzo Chiablese
A53: 49 | B53: Soprintendenza per i beni archeologici del Piemonte e del Museo Antichità EgizieTORINO | D53: sba-pie@beniculturali.it | E53: PIEMONTE | F53: 2 | G53: 132.7 | H53: 265.4 | I53: 10 | J53: 106.16 | K53: 1061.6 | L53: 1327 | M53: 1 | N53: 1327 | O53: ore 20-24 | P53: Museo di Antichità
A54: 50 | B54: Soprintendenza BSAE della Puglia BARI | D54: sbsae-pug@beniculturali.it | E54: PUGLIA | F54: 1 | G54: 132.7 | H54: 132.7 | I54: 7 | J54: 106.16 | K54: 743.12 | L54: 875.82 | M54: 1 | N54: 875.82 | O54: ore 20-24 | P54: Galleria Nazionale della Puglia di Palazzo Sylos Calo' a Bitonto
A55: 51 | B55: Soprintendenza BAP per le prov. di BA, Barletta-Andria, Trani e FG BARI | D55: sbap-ba@beniculturali.it | E55: PUGLIA | F55: 3 | G55: 132.7 | H55: 398.1 | I55: 25 | J55: 106.16 | K55: 2654 | L55: 3052.1 | M55: 1 | N55: 3052.1 | O55: ore 20-24 | P55: Castello Svevo di BA, Castello Svevo di Trani, Castel del Monte
A56: 52 | B56: Soprintendenza BAP per le prov. di LE, BR e TA LECCE | D56: sbap-le@beniculturali.it | E56: PUGLIA | F56: 1 | G56: 132.7 | H56: 132.7 | I56: 5 | J56: 106.16 | K56: 530.8 | L56: 663.5 | M56: 1 | N56: 663.5 | P56: Castello di Copertino
A57: 53 | B57: Soprintendenza per i beni archeologici della Puglia TARANTO | D57: sba-pug@beniculturali.it | E57: PUGLIA | F57: 11 | G57: 132.7 | H57: 1459.7 | I57: 57 | J57: 106.16 | K57: 6051.12 | L57: 7510.82 | M57: 1 | N57: 7510.82
A58: 54 | B58: Soprintendenza BAP per le prov. di RC e VV REGGIO CALABRIA | E58: REGGIO CALABRIA | G58: 132.7 | H58: 0 | J58: 106.16 | K58: 0 | L58: 0 | M58: 1 | N58: 0 | P58: Non aderisce
A59: 55 | B59: Soprintendenza BAPSAE per le prov. di CAGLIARI e ORISTANO | E59: SARDEGNA | G59: 132.7 | H59: 0 | J59: 106.16 | K59: 0 | L59: 0 | M59: 1 | N59: 0
A60: 56 | B60: Soprintendenza BAPSAE per le prov. di SASSARI e NUORO | D60: sbapsae-ss@beniculturali.it | E60: SARDEGNA | F60: 27 | G60: 132.7 | H60: 3582.9 | I60: 44 | J60: 106.16 | K60: 4671.04 | L60: 8253.94 | M60: 1 | N60: 8253.94 | P60: Pinacoteca Mus'A al Canopoleno, Sistema museale di Caprera
A61: 57 | B61: Soprintendenza per i beni archeologici per le prov. CAGLIARI e ORISTANO | D61: sba-ca@beniculturali.it | E61: SARDEGNA | F61: 2 | G61: 132.7 | H61: 265.4 | I61: 13 | J61: 106.16 | K61: 1380.08 | L61: 1645.48 | M61: 1 | N61: 1645.48 | P61: Museo Archeologico Nazionale di Cagliari
A62: 58 | B62: Soprintendenza per i beni archeologici per le prov. SASSARI e NUORO | D62: sba-ss@beniculturali.it | E62: SARDEGNA | F62: 6 | G62: 132.7 | H62: 796.2 | I62: 51 | J62: 106.16 | K62: 5414.16 | L62: 6210.36 | M62: 1 | N62: 6210.36 | O62: ore 20-24 | P62: Museo Sanna, Antiquarium, Museo Asproni
A63: 59 | B63: Soprintendenza BSAE per le prov. di SIENA e GROSSETO | D63: sbsae-si@beniculturali.it | E63: TOSCANA | F63: 1 | G63: 132.7 | H63: 132.7 | I63: 11 | J63: 106.16 | K63: 1167.76 | L63: 1300.46 | M63: 1 | N63: 1300.46 | P63: Pinacoteca Nazionale di Siena
A64: 60 | B64: Soprintendenza BAPSAE AREZZO | D64: sbapsae-ar@beniculturali.it | E64: TOSCANA | F64: 3 | G64: 132.7 | H64: 398.1 | I64: 13 | J64: 106.16 | K64: 1380.08 | L64: 1778.18 | M64: 1 | N64: 1778.18 | O64: ore 20-24 | P64: Chiesa di S. Francesco, Museo Nazionale di Arezzo, Museo Statale di Pal.Taglieschi
A65: 61 | B65: Soprintendenza speciale per il patrimonio SAE e per il polo museale della città di Firenze FIRENZE | D65: sspsae-fi@beniculturali.it | E65: TOSCANA | F65: 6 | G65: 132.7 | H65: 796.2 | I65: 95 | J65: 106.16 | K65: 10085.2 | L65: 10881.4 | M65: 1 | N65: 10881.4
A66: 62 | B66: Soprintendenza BAPSAE per le prov. di PISA e LIVORNO | D66: sbapsae-pi@beniculturali.it | E66: TOSCANA | F66: 10 | G66: 132.7 | H66: 1327 | I66: 40 | J66: 106.16 | K66: 4246.4 | L66: 5573.4 | M66: 1 | N66: 5573.4 | P66: Villa S.Martino, Palazzina dei Mulini, Museo Naz.le S. Matteo, Museo Naz. Pal. Reale Pisa, Certosa Monumentale di Calci
A67: 63 | B67: Soprintendenza BAPSAE per le prov. FI (esclusa Firenze) PT e PO FIRENZE | D67: sbapsae-fi@beniculturali.it | E67: TOSCANA | F67: 3 | G67: 132.7 | H67: 398.1 | I67: 12 | J67: 106.16 | K67: 1273.92 | L67: 1672.02 | M67: 1 | N67: 1672.02 | P67: Museo Naz.le Casa Giusti, Pistoia Complesso Monumentale, Firenze Complesso Monumetale "Le Pagliere"
A68: 64 | B68: Soprintendenza BAP per le prov. di SIENA e GROSSETO | D68: sbap-si@beniculturali.it | E68: TOSCANA | F68: 1 | G68: 132.7 | H68: 132.7 | I68: 5 | J68: 106.16 | K68: 530.8 | L68: 663.5 | M68: 1 | N68: 663.5
A69: 65 | B69: Soprintendenza BAPSAE per le prov. LUCCA e MASSA CARRARA | D69: sbapsae-lu@beniculturali.it | E69: TOSCANA | F69: 2 | G69: 132.7 | H69: =F69*G69 -> 265.4 | I69: 13 | J69: 106.16 | K69: =I69*J69 -> 1380.08 | L69: =H69+K69 -> 1645.48 | M69: 1 | N69: =L69*M69 -> 1645.48 | P69: Palazzo Mansi, Villa Guinigi
A70: 66 | B70: Soprintendenza per i beni archeologici della Toscana FIRENZE | D70: sba-tos@beniculturali.it | E70: TOSCANA | F70: 11 | G70: 132.7 | H70: 1459.7 | I70: 56 | J70: 106.16 | K70: 5944.96 | L70: 7404.66 | M70: 1 | N70: 7404.66 | P70: Museo Arch. di Fi, di Arezzo, di Chiusi, Area arch. di Montefortini e di Roselle
A71: 67 | B71: Soprintendenza BSAE dell'Umbria PERUGIA | D71: sbsae-umb@beniculturali.it | E71: UMBRIA | F71: 3 | G71: 132.7 | H71: 398.1 | I71: 14 | J71: 106.16 | K71: 1486.24 | L71: 1884.34 | M71: 1 | N71: 1884.34 | P71: Galleria Naz.le Umbria in PG e castello Bufalini a S.Giustino
A72: 68 | B72: Soprintendenza BAP dell'Umbria PERUGIA | D72: sbap-umb@beniculturali.it | E72: UMBRIA | F72: 3 | G72: 132.7 | H72: 398.1 | I72: 14 | J72: 106.16 | K72: 1486.24 | L72: 1884.34 | M72: 1 | N72: 1884.34 | P72: Museo Nazionale del Ducato di Spoleto, Tempietto sul Clitunno, Pal. Ducale di Gubbio
A73: 69 | B73: Soprintendenza per i beni archeologici dell'Umbria PERUGIA | D73: sba-umb@beniculturali.it | E73: UMBRIA | F73: 6 | G73: 132.7 | H73: 796.2 | I73: 32 | J73: 106.16 | K73: 3397.12 | L73: 4193.32 | M73: 1 | N73: 4193.32
A74: 70 | B74: Soprintendenza BSAE prov. di VR, RO, VI VERONA | E74: VENETO | G74: 132.7 | H74: 0 | J74: 106.16 | K74: 0 | L74: 0 | M74: 1 | N74: 0 | P74: Non dipendono musei
A75: 71 | B75: Soprintendenza BAP per le prov. di VE, BL, PD e TV VENEZIA | D75: sbap-vebpt@beniculturali.it | E75: VENETO | F75: 1 | G75: 132.7 | H75: 132.7 | I75: 5 | J75: 106.16 | K75: 530.8 | L75: 663.5 | M75: 1 | N75: 663.5 | O75: ore 20-24 | P75: Villa Pisani a Stra
A76: 72 | B76: Soprintendenza speciale patrimonio storico,artistico ed etnoantropologico e per il polo museale di VE e dei comuni della Gronda lagunare | D76: sspsae-ve@beniculturali.it | E76: VENETO | F76: 3 | G76: 132.7 | H76: 398.1 | I76: 24 | J76: 106.16 | K76: 2547.84 | L76: 2945.94 | M76: 1 | N76: 2945.94 | P76: Gallerie dell'Accademia, Ca' D'Oro, Museo di Palazzo Grimani
A77: 73 | B77: Soprintendenza per i beni archeologici del Veneto PADOVA | D77: sba-ven@beniculturali.it | E77: VENETO | F77: 5 | G77: 132.7 | H77: 663.5 | I77: 17 | J77: 106.16 | K77: 1804.72 | L77: 2468.22 | M77: 1 | N77: 2468.22
A78: 74 | B78: Soprintendenza speciale per i beni archeologici di Pompei, Ercolano e Stabia | C78: si | E78: CAMPANIA | F78: 6 | G78: 132.7 | H78: 796.2 | I78: 40 | J78: 106.16 | K78: 4246.4 | L78: 5042.6 | M78: 1 | N78: 5042.6 | O78: Museo Archeo 20-24 Museo Nola 20-24 | P78: Pompei, Oplonti, Boscoreale
A79: 75 | B79: Soprintendenza speciale per IL Patrimonio Storico Artistico ed etno per il polo museale della città di Roma | E79: LAZIO | G79: 132.7 | H79: 0 | J79: 106.16 | K79: 0 | L79: 0 | M79: 1 | N79: 0 | P79: sì - In attesa di consocere ile unità Galleria Borghese, Castel Sant'Angelo, Galleria Spada, Museo Nazionale degli Strumenti Musicali
A80: 76 | B80: Istituto Superiore per la Conservazione e il Restauro - ROMA | E80: LAZIO | F80: 0 | G80: 132.7 | H80: =F80*G80 -> 0 | I80: 0 | J80: 106.16 | K80: =I80*J80 -> 0 | L80: =H80+K80 -> 0 | M80: 1 | N80: =L80*M80 -> 0 | P80: Apertura straordinaria del Complesso S.Michele
A81: 77 | B81: Soprintendenza Speciale per il PSAE e per il polo Museale della Città di Napoli e della Reggia di Caserta | D81: sspsae-nap@beniculturali.it | E81: CAMPANIA | F81: 10 | G81: 132.7 | H81: =F81*G81 -> 1327 | I81: 229 | J81: 106.16 | K81: =I81*J81 -> 24310.64 | L81: =H81+K81 -> 25637.64 | M81: 1 | N81: =L81*M81 -> 25637.64 | P81: solo complesso vanvitelliano (1 area III e 64 Area II))
A82: 78 | B82: Soprintendenza BAP di Milano | D82: sbsae-mn@beniculturali.it | E82: LOMBARDIA | F82: 3 | G82: 132.7 | H82: =F82*G82 -> 398.1 | I82: 10 | J82: 106.16 | K82: =I82*J82 -> 1061.6 | L82: =H82+K82 -> 1459.7 | M82: 1 | N82: =L82*M82 -> 1459.7 | O82: ore 20-24 | P82: Cenacolo vinciano e Palazzo Besta in Teglio (SO)
A83: 79 | B83: Biblioteca Reale Torino | D83: b-real@beniculturali.it | E83: PIEMONTE | F83: 1 | G83: 132.7 | H83: =F83*G83 -> 132.7 | I83: 4 | J83: 106.16 | K83: =I83*J83 -> 424.64 | L83: =H83+K83 -> 557.34 | M83: 1 | N83: =L83*M83 -> 557.34 | P83: Apertura straordinaria del Complesso Monumentale
K84: Totale singola apertura | L84: =SUM(L5:L83) -> 275166.72 | M84: Totale complessivo | N84: =SUM(N5:N83) -> 275166.72
A86: N.B : COSTO UNITARIO DEL PERSONALE AL NETTO DEGLI ONERI DELL'AMM.NE: Area 3 € 100
A87: N.B : COSTO UNITARIO DEL PERSONALE AL NETTO DEGLI ONERI DELL'AMM.NE: Area 1 e 2 € 80

Sheet ARCH_BIBL_GEP_2017
A3: Giornte europee del Patrimonio 2017 (23-24 settembre 2017) - Eventi diurni
A4: Turno di 4 ore
A5: Compenso previsto: euro 100 (a lordo dipendente) Area III; euro 80 (a lordo dipendente) Area I e II
A7: NUMERO | B7: Istituto | C7: email | D7: N. partecipanti Area III | E7: Costo unitario lordo dipendente Area III comprensivo degli oneri dell'Amm.ne | F7: Totale Costo complessivo lordo dipendenti Area III comprensivo degli oneri dell'Amm.ne | G7: N. partecipanti Area I e II | H7: Costo unitario lordo dipendente Area I e II comprensivo degli oneri dell'Amm.ne | I7: Totale Costo complessivo lordo dipendenti Area I e II comprensivo degli oneri dell'Amm.ne | J7: Area I II e III Costo totale unitario complessivo per singola giornata di apertura | K7: N. aperture | L7: Totale al lordo dipendente | M7: Totale al lordo oneri amministrazione
A8: 1 | B8: Archivio centrale dello Stato | C8: acs@beniculturali.it | D8: 30 | E8: 132.7 | F8: =D8*E8 -> 3981 | G8: 65 | H8: 106.16 | I8: =G8*H8 -> 6900.4 | J8: =F8+I8 -> 10881.4 | K8: 1 | L8: =M8/1.327 -> 9042.954032 | M8: 12000
A9: 2 | B9: Archivio di Stato de L'Aquila | C9: Inviata conferma | D9: 7 | E9: 132.7 | F9: 928.9 | G9: 11 | H9: 106.16 | I9: 1167.76 | J9: 2096.66 | K9: 1 | L9: =M9/1.327 -> 1582.516956 | M9: 2100
A10: 3 | B10: Archivio di Stato di Agrigento | C10: as-ag@beniculturali.it | D10: 2 | E10: 132.7 | F10: 265.4 | G10: 32 | H10: 106.16 | I10: 3397.12 | J10: 3662.52 | K10: 1 | L10: 2712.886209 | M10: 3600
A11: 4 | B11: Archivio di Stato di Alessandria | C11: as-al@beniculturali.it | D11: 3 | E11: 132.7 | F11: 398.1 | G11: 7 | H11: 106.16 | I11: 743.12 | J11: 1141.22 | K11: 1 | L11: 904.2954032 | M11: 1200
A12: 5 | B12: Archivio di Stato di Ancona | C12: as-an@beniculturali.it | D12: 2 | E12: 132.7 | F12: 265.4 | G12: 10 | H12: 106.16 | I12: 1061.6 | J12: 1327 | K12: 1 | L12: 979.6533534 | M12: 1300
A13: 6 | B13: Archivio di Stato di Arezzo | C13: as-ar@beniculturali.it | D13: 5 | E13: 132.7 | F13: 663.5 | G13: 4 | H13: 106.16 | I13: 424.64 | J13: 1088.14 | K13: 1 | L13: 828.9374529 | M13: 1100
A14: 7 | B14: Archivio di Stato di Ascoli Piceno | C14: as-ap@beniculturali.it | D14: 2 | E14: 132.7 | F14: 265.4 | G14: 4 | H14: 106.16 | I14: 424.64 | J14: 690.04 | K14: 1 | L14: 527.5056518 | M14: 700
A15: 8 | B15: Archivio di Stato di Asti | C15: as-at@beniculturali.it | D15: 3 | E15: 132.7 | F15: 398.1 | G15: 6 | H15: 106.16 | I15: 636.96 | J15: 1035.06 | K15: 1 | L15: 75.35795026 | M15: 100
A16: 9 | B16: Archivio di Stato di Avellino | C16: as-av@beniculturali.it | D16: 12 | E16: 132.7 | F16: 1592.4 | G16: 16 | H16: 106.16 | I16: 1698.56 | J16: 3290.96 | K16: 1 | L16: 2486.812359 | M16: 3300
A17: 10 | B17: Archivio di Stato di Bari | C17: as-ba@beniculturali.it | D17: 9 | E17: 132.7 | F17: 1194.3 | G17: 20 | H17: 106.16 | I17: 2123.2 | J17: 3317.5 | K17: 1 | L17: 2486.812359 | M17: 3300
A18: 11 | B18: Archivio di Stato di Belluno | C18: as-bl@beniculturali.it | D18: 2 | E18: 132.7 | F18: 265.4 | G18: 5 | H18: 106.16 | I18: 530.8 | J18: 796.2 | K18: 1 | L18: 602.8636021 | M18: 800
A19: 12 | B19: Archivio di Stato di Benevento | C19: as-bn@beniculturali.it | D19: 9 | E19: 132.7 | F19: 1194.3 | G19: 18 | H19: 106.16 | I19: 1910.88 | J19: 3105.18 | K19: 1 | L19: 2336.096458 | M19: 3100
A20: 13 | B20: Archivio di Stato di Bergamo | C20: as-bg@beniculturali.it | D20: 2 | E20: 132.7 | F20: 265.4 | G20: 5 | H20: 106.16 | I20: 530.8 | J20: 796.2 | K20: 1 | L20: 602.8636021 | M20: 800
A21: 14 | B21: Archivio di Stato di Biella | C21: as-bi@beniculturali.it | D21: 3 | E21: 132.7 | F21: 398.1 | G21: 3 | H21: 106.16 | I21: 318.48 | J21: 716.58 | K21: 1 | L21: 527.5056518 | M21: 700
A22: 15 | B22: Archivio di Stato di Bologna e Imola | C22: as-bo@beniculturali.it | D22: 8 | E22: 132.7 | F22: 1061.6 | G22: 20 | H22: 106.16 | I22: 2123.2 | J22: 3184.8 | K22: 1 | L22: 2411.454408 | M22: 3200
A23: 16 | B23: Archivio di Stato di Bolzano | D23: 4 | E23: 132.7 | F23: 530.8 | G23: 3 | H23: 106.16 | I23: 318.48 | J23: 849.28 | K23: 1 | L23: 602.8636021 | M23: 800
A24: 17 | B24: Archivio di Stato di Brescia | D24: 2 | E24: 132.7 | F24: 265.4 | G24: 4 | H24: 106.16 | I24: 424.64 | J24: 690.04 | K24: 1 | L24: 527.5056518 | M24: 700
A25: 18 | B25: Archivio di Stato di Brindisi | C25: as-br@beniculturali.it | D25: 6 | E25: 132.7 | F25: 796.2 | G25: 6 | H25: 106.16 | I25: 636.96 | J25: 1433.16 | K25: 1 | L25: 1130.369254 | M25: 1500
A26: 19 | B26: Archivio di Stato di Cagliari | C26: as-ca@beniculturali.it | D26: 5 | E26: 132.7 | F26: 663.5 | G26: 15 | H26: 106.16 | I26: 1592.4 | J26: 2255.9 | K26: 1 | L26: 1733.232856 | M26: 2300
A27: 20 | B27: Archivio di Stato di Caltannissetta | D27: 2 | E27: 132.7 | F27: 265.4 | G27: 15 | H27: 106.16 | I27: 1592.4 | J27: 1857.8 | K27: 1 | L27: 1356.443105 | M27: 1800
A28: 21 | B28: Archivio di Stato di Campobasso | C28: as-cb@beniculturali.it | D28: 23 | E28: 132.7 | F28: 3052.1 | G28: 13 | H28: 106.16 | I28: 1380.08 | J28: 4432.18 | K28: 1 | L28: 3391.107762 | M28: 4500
A29: 22 | B29: Archivio di Stato di Caserta | C29: as-ce@beniculturali.it | D29: 5 | E29: 132.7 | F29: 663.5 | G29: 11 | H29: 106.16 | I29: 1167.76 | J29: 1831.26 | K29: 1 | L29: 1356.443105 | M29: 1800
A30: 23 | B30: Archivio di Stato di Catania | C30: as-ct@beniculturali.it | D30: 7 | E30: 132.7 | F30: 928.9 | G30: 18 | H30: 106.16 | I30: 1910.88 | J30: 2839.78 | K30: 1 | L30: 2110.022607 | M30: 2800
A31: 24 | B31: Archivio di Stato di Catanzaro | C31: as-cz@beniculturali.it | D31: 12 | E31: 132.7 | F31: 1592.4 | G31: 16 | H31: 106.16 | I31: 1698.56 | J31: 3290.96 | K31: 1 | L31: 2411.454408 | M31: 3200
A32: 25 | B32: Archivio di Stato di Chieti | C32: as-ch@beniculturali.it | D32: 4 | E32: 132.7 | F32: 530.8 | G32: 5 | H32: 106.16 | I32: 530.8 | J32: 1061.6 | K32: 1 | L32: 828.9374529 | M32: 1100
A33: 26 | B33: Archivio di Stato di Como | C33: as-co@beniculturali.it | D33: 2 | E33: 132.7 | F33: 265.4 | G33: 3 | H33: 106.16 | I33: 318.48 | J33: 583.88 | K33: 1 | L33: 452.1477016 | M33: 600
A34: 27 | B34: Archivio di Stato di Cosenza | C34: as-cs@beniculturali.it | D34: 29 | E34: 132.7 | F34: 3848.3 | G34: 28 | H34: 106.16 | I34: 2972.48 | J34: 6820.78 | K34: 1 | L34: 5124.340618 | M34: 6800
A35: 28 | B35: Archivio di Stato di Cremona | C35: as-cr@beniculturali.it | D35: 2 | E35: 132.7 | F35: 265.4 | G35: 2 | H35: 106.16 | I35: 212.32 | J35: 477.72 | K35: 1 | L35: 376.7897513 | M35: 500
A36: 29 | B36: Archivio di Stato di Cuneo | D36: 3 | E36: 132.7 | F36: 398.1 | G36: 5 | H36: 106.16 | I36: 530.8 | J36: 928.9 | K36: 1 | L36: 678.2215524 | M36: 900
A37: 30 | B37: Archivio di Stato di Enna | D37: 2 | E37: 132.7 | F37: 265.4 | G37: 4 | H37: 106.16 | I37: 424.64 | J37: 690.04 | K37: 1 | L37: 527.5056518 | M37: 700
A38: 31 | B38: Archivio di Stato di Fermo | D38: 2 | E38: 132.7 | F38: 265.4 | G38: 2 | H38: 106.16 | I38: 212.32 | J38: 477.72 | K38: 1 | L38: 376.7897513 | M38: 500
A39: 32 | B39: Archivio di Stato di Ferrara | C39: as-fe@beniculturali.it | D39: 5 | E39: 132.7 | F39: 663.5 | G39: 3 | H39: 106.16 | I39: 318.48 | J39: 981.98 | K39: 1 | L39: 753.5795026 | M39: 1000
A40: 33 | B40: Archivio di Stato di Firenze | C40: as-fi@beniculturali.it | D40: 8 | E40: 132.7 | F40: =D40*E40 -> 1061.6 | G40: 14 | H40: 106.16 | I40: =G40*H40 -> 1486.24 | J40: =F40+I40 -> 2547.84 | K40: 1 | L40: 1883.948757 | M40: 2500
A41: 34 | B41: Archivio di Stato di Foggia | C41: as-fg@beniculturali.it | D41: 9 | E41: 132.7 | F41: 1194.3 | G41: 14 | H41: 106.16 | I41: 1486.24 | J41: 2680.54 | K41: 1 | L41: 1959.306707 | M41: 2600
A42: 35 | B42: Archivio di Stato di Forli'-Cesena | C42: as-fo@beniculturali.it | D42: 2 | E42: 132.7 | F42: 265.4 | G42: 11 | H42: 106.16 | I42: 1167.76 | J42: 1433.16 | K42: 1 | L42: 1130.369254 | M42: 1500
A43: 36 | B43: Archivio di Stato di Frosinone | C43: as-fr@beniculturali.it | D43: 6 | E43: 132.7 | F43: 796.2 | G43: 9 | H43: 106.16 | I43: 955.44 | J43: 1751.64 | K43: 1 | L43: 1281.085154 | M43: 1700
A44: 37 | B44: Archivio di Stato di Genova | C44: as-ge@beniculturali.it | D44: 4 | E44: 132.7 | F44: 530.8 | G44: 11 | H44: 106.16 | I44: 1167.76 | J44: 1698.56 | K44: 1 | L44: 1281.085154 | M44: 1700
A45: 38 | B45: Archivio di Stato di Gorizia | C45: as-go@beniculturali.it | D45: 2 | E45: 132.7 | F45: 265.4 | G45: 6 | H45: 106.16 | I45: 636.96 | J45: 902.36 | K45: 1 | L45: 753.5795026 | M45: 1000
A46: 39 | B46: Archivio di Stato di Grosseto | D46: 4 | E46: 132.7 | F46: 530.8 | G46: 4 | H46: 106.16 | I46: 424.64 | J46: 955.44 | K46: 1 | L46: 753.5795026 | M46: 1000
A47: 40 | B47: Archivio di Stato di Imperia | C47: as-im@beniculturali.it | D47: 2 | E47: 132.7 | F47: 265.4 | G47: 5 | H47: 106.16 | I47: 530.8 | J47: 796.2 | K47: 1 | L47: 602.8636021 | M47: 800
A48: 41 | B48: Archivio di Stato di Isernia | C48: as-is@beniculturali.it | D48: 14 | E48: 132.7 | F48: 1857.8 | G48: 4 | H48: 106.16 | I48: 424.64 | J48: 2282.44 | K48: 1 | L48: 1657.874906 | M48: 2200
A49: 42 | B49: Archivio di Stato di La Spezia | D49: 2 | E49: 132.7 | F49: 265.4 | G49: 7 | H49: 106.16 | I49: 743.12 | J49: 1008.52 | K49: 1 | L49: 753.5795026 | M49: 1000
A50: 43 | B50: Archivio di Stato di Latina | C50: as-lt@beniculturali.it | D50: 3 | E50: 132.7 | F50: 398.1 | G50: 11 | H50: 106.16 | I50: 1167.76 | J50: 1565.86 | K50: 1 | L50: 1130.369254 | M50: 1500
A51: 44 | B51: Archivio di Stato di Lecce | C51: as-le@beniculturali.it | D51: 15 | E51: 132.7 | F51: 1990.5 | G51: 8 | H51: 106.16 | I51: 849.28 | J51: 2839.78 | K51: 1 | L51: 2110.022607 | M51: 2800
A52: 45 | B52: Archivio di Stato di Livorno | C52: as-li@beniculturali.it | D52: 7 | E52: 132.7 | F52: 928.9 | G52: 6 | H52: 106.16 | I52: 636.96 | J52: 1565.86 | K52: 1 | L52: 1130.369254 | M52: 1500
A53: 46 | B53: Archivio di Stato di Lucca | C53: as-lu@beniculturali.it | D53: 3 | E53: 132.7 | F53: 398.1 | G53: 5 | H53: 106.16 | I53: 530.8 | J53: 928.9 | K53: 1 | L53: 753.5795026 | M53: 1000
A54: 47 | B54: Archivio di Stato di Macerata | C54: as-mc@beniculturali.it | D54: 6 | E54: 132.7 | F54: 796.2 | G54: 4 | H54: 106.16 | I54: 424.64 | J54: 1220.84 | K54: 1 | L54: 904.2954032 | M54: 1200
A55: 48 | B55: Archivio di Stato di Mantova | C55: as-mn@beniculturali.it | D55: 3 | E55: 132.7 | F55: 398.1 | G55: 2 | H55: 106.16 | I55: 212.32 | J55: 610.42 | K55: 1 | L55: 452.1477016 | M55: 600
A56: 49 | B56: Archivio di Stato di Massa | C56: as-ms@beniculturali.it | D56: 3 | E56: 132.7 | F56: 398.1 | G56: 9 | H56: 106.16 | I56: 955.44 | J56: 1353.54 | K56: 1 | L56: 979.6533534 | M56: 1300
A57: 50 | B57: Archivio di Stato di Matera | C57: as-mt@beniculturali.it | D57: 6 | E57: 132.7 | F57: 796.2 | G57: 6 | H57: 106.16 | I57: 636.96 | J57: 1433.16 | K57: 1 | L57: 1055.011304 | M57: 1400
A58: 51 | B58: Archivio di Stato di Messina | C58: as-me@beniculturali.it | D58: 7 | E58: 132.7 | F58: 928.9 | G58: 11 | H58: 106.16 | I58: 1167.76 | J58: 2096.66 | K58: 1 | L58: 1507.159005 | M58: 2000
A59: 52 | B59: Archivio di Stato di Milano | C59: as-mi@beniculturali.it | D59: 5 | E59: 132.7 | F59: 663.5 | G59: 5 | H59: 106.16 | I59: 530.8 | J59: 1194.3 | K59: 1 | L59: 904.2954032 | M59: 1200
A60: 53 | B60: Archivio di Stato di Modena | C60: as-mo@beniculturali.it | D60: 3 | E60: 132.7 | F60: 398.1 | G60: 6 | H60: 106.16 | I60: 636.96 | J60: 1035.06 | K60: 1 | L60: 753.5795026 | M60: 1000
A61: 54 | B61: Archivio di Stato di Napoli | C61: as-na@beniculturali.it | D61: 15 | E61: 132.7 | F61: 1990.5 | G61: 31 | H61: 106.16 | I61: 3290.96 | J61: 5281.46 | K61: 1 | L61: 3918.613414 | M61: 5200
A62: 55 | B62: Archivio di Stato di Novara | C62: as-no@beniculturali.it | D62: 3 | E62: 132.7 | F62: 398.1 | G62: 2 | H62: 106.16 | I62: 212.32 | J62: 610.42 | K62: 1 | L62: 452.1477016 | M62: 600
A63: 56 | B63: Archivio di Stato di Nuoro | C63: as-nu@beniculturali.it | D63: 2 | E63: 132.7 | F63: 265.4 | G63: 1 | H63: 106.16 | I63: 106.16 | J63: 371.56 | K63: 1 | L63: 376.7897513 | M63: 500
A64: 57 | B64: Archivio di Stato di Oristano | C64: as-or@beniculturali.it | D64: 3 | E64: 132.7 | F64: 398.1 | G64: 7 | H64: 106.16 | I64: 743.12 | J64: 1141.22 | K64: 1 | L64: 828.9374529 | M64: 1100
A65: 58 | B65: Archivio di Stato di Padova | D65: 4 | E65: 132.7 | F65: 530.8 | G65: 6 | H65: 106.16 | I65: 636.96 | J65: 1167.76 | K65: 1 | L65: 828.9374529 | M65: 1100
A66: 59 | B66: Archivio di Stato di Palermo | C66: as-pa@beniculturali.it | D66: 5 | E66: 132.7 | F66: 663.5 | G66: 21 | H66: 106.16 | I66: 2229.36 | J66: 2892.86 | K66: 1 | L66: 2110.022607 | M66: 2800
A67: 60 | B67: Archivio di Stato di Parma | C67: as-pr@beniculturali.it | D67: 2 | E67: 132.7 | F67: 265.4 | G67: 7 | H67: 106.16 | I67: 743.12 | J67: 1008.52 | K67: 1 | L67: 753.5795026 | M67: 1000
A68: 61 | B68: Archivio di Stato di Pavia | C68: as-pv@beniculturali.it | D68: 4 | E68: 132.7 | F68: 530.8 | G68: 4 | H68: 106.16 | I68: 424.64 | J68: 955.44 | K68: 1 | L68: 753.5795026 | M68: 1000
A69: 62 | B69: Archivio di Stato di Perugia | C69: as-pg@beniculturali.it | D69: 16 | E69: 132.7 | F69: 2123.2 | G69: 18 | H69: 106.16 | I69: 1910.88 | J69: 4034.08 | K69: 1 | L69: 3014.318011 | M69: 4000
A70: 63 | B70: Archivio di Stato di Pesaro | C70: as-ps@beniculturali.it | D70: 2 | E70: 132.7 | F70: 265.4 | G70: 12 | H70: 106.16 | I70: 1273.92 | J70: 1539.32 | K70: 1 | L70: 1130.369254 | M70: 1500
A71: 64 | B71: Archivio di Stato di Pescara | C71: as-pe@beniculturali.it | D71: 5 | E71: 132.7 | F71: 663.5 | G71: 9 | H71: 106.16 | I71: 955.44 | J71: 1618.94 | K71: 1 | L71: 1205.727204 | M71: 1600
A72: 65 | B72: Archivio di Stato di Piacenza | D72: 3 | E72: 132.7 | F72: =D72*E72 -> 398.1 | G72: 5 | H72: 106.16 | I72: =G72*H72 -> 530.8 | J72: =F72+I72 -> 928.9 | K72: 1 | L72: 753.5795026 | M72: 1000
A73: 66 | B73: Archivio di Stato di Pisa | D73: 3 | E73: 132.7 | F73: 398.1 | G73: 5 | H73: 106.16 | I73: 530.8 | J73: 928.9 | K73: 1 | L73: =M73/1.327 -> 753.5795026 | M73: 1000
A74: 67 | B74: Archivio di Stato di Pistoia | C74: as-pt@beniculturali.it | D74: 3 | E74: 132.7 | F74: 398.1 | G74: 10 | H74: 106.16 | I74: 1061.6 | J74: 1459.7 | K74: 1 | L74: 1130.369254 | M74: 1500
A75: 68 | B75: Archivio di Stato di Pordenone | D75: 3 | E75: 132.7 | F75: 398.1 | G75: 6 | H75: 106.16 | I75: 636.96 | J75: 1035.06 | K75: 1 | L75: 753.5795026 | M75: 1000
A76: 69 | B76: Archivio di Stato di Potenza | D76: 4 | E76: 132.7 | F76: 530.8 | G76: 7 | H76: 106.16 | I76: 743.12 | J76: 1273.92 | K76: 1 | L76: 904.2954032 | M76: 1200
A77: 70 | B77: Archivio di Stato di Prato | D77: 2 | E77: 132.7 | F77: 265.4 | G77: 4 | H77: 106.16 | I77: 424.64 | J77: 690.04 | K77: 1 | L77: 527.5056518 | M77: 700
A78: 71 | B78: Archivio di Stato di Ragusa | D78: 3 | E78: 132.7 | F78: 398.1 | G78: 5 | H78: 106.16 | I78: 530.8 | J78: 928.9 | K78: 1 | L78: 753.5795026 | M78: 1000
A79: 72 | B79: Archivio di Stato di Ravenna | C79: as-ra@beniculturali.it | D79: 4 | E79: 132.7 | F79: 530.8 | G79: 3 | H79: 106.16 | I79: 318.48 | J79: 849.28 | K79: 1 | L79: 678.2215524 | M79: 900
A80: 73 | B80: Archivio di Stato di Reggio Calabria | C80: as-rc@beniculturali.it | D80: 16 | E80: 132.7 | F80: 2123.2 | G80: 22 | H80: 106.16 | I80: 2335.52 | J80: 4458.72 | K80: 1 | L80: 3315.749812 | M80: 4400
A81: 74 | B81: Archivio di Stato di Reggio Emilia | D81: 3 | E81: 132.7 | F81: 398.1 | G81: 4 | H81: 106.16 | I81: 424.64 | J81: 822.74 | K81: 1 | L81: 602.8636021 | M81: 800
A82: 75 | B82: Archivio di Stato di Rieti | C82: as-ri@beniculturali.it | D82: 6 | E82: 132.7 | F82: 796.2 | G82: 16 | H82: 106.16 | I82: 1698.56 | J82: 2494.76 | K82: 1 | L82: 1883.948757 | M82: 2500
A83: 76 | B83: Archivio di Stato di Rimini | C83: as-rn@beniculturali.it | D83: 5 | E83: 132.7 | F83: 663.5 | G83: 6 | H83: 106.16 | I83: 636.96 | J83: 1300.46 | K83: 1 | L83: 979.6533534 | M83: 1300
A84: 77 | B84: Archivio di Stato di Roma | C84: as-rm@beniculturali.it | D84: 7 | E84: 132.7 | F84: 928.9 | G84: 11 | H84: 106.16 | I84: 1167.76 | J84: 2096.66 | K84: 1 | L84: 1507.159005 | M84: 2000
A85: 78 | B85: Archivio di Stato di Rovigo | C85: as-ro@beniculturali.it | D85: 3 | E85: 132.7 | F85: 398.1 | G85: 10 | H85: 106.16 | I85: 1061.6 | J85: 1459.7 | K85: 1 | L85: 1130.369254 | M85: 1500
A86: 79 | B86: Archivio di Stato di Salerno | C86: as-sa@beniculturali.it | D86: 9 | E86: 132.7 | F86: 1194.3 | G86: 14 | H86: 106.16 | I86: 1486.24 | J86: 2680.54 | K86: 1 | L86: 2034.664657 | M86: 2700
A87: 80 | B87: Archivio di Stato di Sassari | D87: 2 | E87: 132.7 | F87: 265.4 | G87: 7 | H87: 106.16 | I87: 743.12 | J87: 1008.52 | K87: 1 | L87: 753.5795026 | M87: 1000
A88: 81 | B88: Archivio di Stato di Savona | C88: as-sv@beniculturali.it | D88: 2 | E88: 132.7 | F88: 265.4 | G88: 6 | H88: 106.16 | I88: 636.96 | J88: 902.36 | K88: 1 | L88: 678.2215524 | M88: 900
A89: 82 | B89: Archivio di Stato di Siena | C89: as-si@beniculturali.it | D89: 2 | E89: 132.7 | F89: 265.4 | G89: 10 | H89: 106.16 | I89: 1061.6 | J89: 1327 | K89: 1 | L89: 979.6533534 | M89: 1300
A90: 83 | B90: Archivio di Stato di Siracusa | D90: 6 | E90: 132.7 | F90: 796.2 | G90: 15 | H90: 106.16 | I90: 1592.4 | J90: 2388.6 | K90: 1 | L90: 1808.590806 | M90: 2400
A91: 84 | B91: Archivio di Stato di Sondrio | C91: as-so@beniculturali.it | D91: 2 | E91: 132.7 | F91: 265.4 | G91: 2 | H91: 106.16 | I91: 212.32 | J91: 477.72 | K91: 1 | L91: 376.7897513 | M91: 500
A92: 85 | B92: Archivio di Stato di Taranto | C92: as-ta@beniculturali.it | D92: 12 | E92: 132.7 | F92: 1592.4 | G92: 12 | H92: 106.16 | I92: 1273.92 | J92: 2866.32 | K92: 1 | L92: 2110.022607 | M92: 2800
A93: 86 | B93: Archivio di Stato di Teramo | C93: as-te@beniculturali.it | D93: 4 | E93: 132.7 | F93: 530.8 | G93: 6 | H93: 106.16 | I93: 636.96 | J93: 1167.76 | K93: 1 | L93: 828.9374529 | M93: 1100
A94: 87 | B94: Archivio di Stato di Terni | C94: as-tr@beniculturali.it | D94: 7 | E94: 132.7 | F94: 928.9 | G94: 11 | H94: 106.16 | I94: 1167.76 | J94: 2096.66 | K94: 1 | L94: 1507.159005 | M94: 2000
A95: 88 | B95: Archivio di Stato di Torino | C95: as-to@beniculturali.it | D95: 5 | E95: 132.7 | F95: 663.5 | G95: 10 | H95: 106.16 | I95: 1061.6 | J95: 1725.1 | K95: 1 | L95: 1281.085154 | M95: 1700
A96: 89 | B96: Archivio di Stato di Trapani | D96: 2 | E96: 132.7 | F96: 265.4 | G96: 17 | H96: 106.16 | I96: 1804.72 | J96: 2070.12 | K96: 1 | L96: 1507.159005 | M96: 2000
A97: 90 | B97: Archivio di Stato di Trento | C97: as-tn@beniculturali.it | D97: 2 | E97: 132.7 | F97: 265.4 | G97: 5 | H97: 106.16 | I97: 530.8 | J97: 796.2 | K97: 1 | L97: 602.8636021 | M97: 800
A98: 91 | B98: Archivio di Stato di Treviso | C98: as-tv@beniculturali.it | D98: 3 | E98: 132.7 | F98: 398.1 | G98: 5 | H98: 106.16 | I98: 530.8 | J98: 928.9 | K98: 1 | L98: 678.2215524 | M98: 900
A99: 92 | B99: Archivio di Stato di Trieste | C99: as-ts@beniculturali.it | D99: 4 | E99: 132.7 | F99: 530.8 | G99: 8 | H99: 106.16 | I99: 849.28 | J99: 1380.08 | K99: 1 | L99: 979.6533534 | M99: 1300
A100: 93 | B100: Archivio di Stato di Udine | D100: 2 | E100: 132.7 | F100: 265.4 | G100: 6 | H100: 106.16 | I100: 636.96 | J100: 902.36 | K100: 1 | L100: 678.2215524 | M100: 900
A101: 94 | B101: Archivio di Stato di Varese | C101: as-va@beniculturali.it | D101: 2 | E101: 132.7 | F101: 265.4 | G101: 7 | H101: 106.16 | I101: 743.12 | J101: 1008.52 | K101: 1 | L101: 753.5795026 | M101: 1000
A102: 95 | B102: Archivio di Stato di Venezia | C102: as-ve@beniculturali.it | D102: 10 | E102: 132.7 | F102: 1327 | G102: 21 | H102: 106.16 | I102: 2229.36 | J102: 3556.36 | K102: 1 | L102: 2637.528259 | M102: 3500
A103: 96 | B103: Archivio di Stato di Verbania | C103: as-vb@beniculturali.it | D103: 2 | E103: 132.7 | F103: 265.4 | G103: 2 | H103: 106.16 | I103: 212.32 | J103: 477.72 | K103: 1 | L103: 376.7897513 | M103: 500
A104: 97 | B104: Archivio di Stato di Vercelli | C104: as-vc@beniculturali.it | D104: 3 | E104: 132.7 | F104: =D104*E104 -> 398.1 | G104: 6 | H104: 106.16 | I104: =G104*H104 -> 636.96 | J104: =F104+I104 -> 1035.06 | K104: 1 | L104: 753.5795026 | M104: 1000
A105: 98 | B105: Archivio di Stato di Verona | C105: as-vr@beniculturali.it | D105: 6 | E105: 132.7 | F105: 796.2 | G105: 10 | H105: 106.16 | I105: 1061.6 | J105: 1857.8 | K105: 1 | L105: 1356.443105 | M105: 1800
A106: 99 | B106: Archivio di Stato di Vibo Valentia | C106: as-vv@beniculturali.it | D106: 6 | E106: 132.7 | F106: 796.2 | G106: 8 | H106: 106.16 | I106: 849.28 | J106: 1645.48 | K106: 1 | L106: 1205.727204 | M106: 1600
A107: 100 | B107: Archivio di Stato di Vicenza | C107: as-vi@beniculturali.it | D107: 2 | E107: 132.7 | F107: 265.4 | G107: 9 | H107: 106.16 | I107: 955.44 | J107: 1220.84 | K107: 1 | L107: 904.2954032 | M107: 1200
A108: 101 | B108: Archivio di Stato di Viterbo | D108: 4 | E108: 132.7 | F108: 530.8 | G108: 9 | H108: 106.16 | I108: 955.44 | J108: 1486.24 | K108: 1 | L108: 1055.011304 | M108: 1400
A109: 102 | B109: Istituto centrale per il catalogo e la documentazione | C109: ic-cd@beniculturali.it | D109: 9 | E109: 132.7 | F109: 1194.3 | G109: 15 | H109: 106.16 | I109: 1592.4 | J109: 2786.7 | K109: 1 | L109: 2034.664657 | M109: 2700
A110: 103 | B110: Istituto centrale per il restauro e la conservazione del patrimonio archivistico e librario | C110: ic-cd@beniculturali.it | D110: 16 | E110: 132.7 | F110: =D110*E110 -> 2123.2 | G110: 18 | H110: 106.16 | I110: =G110*H110 -> 1910.88 | J110: =F110+I110 -> 4034.08 | K110: 1 | L110: 3014.318011 | M110: 4000
A111: 104 | B111: Istituto centrale per gli archivi | C111: ic-cd@beniculturali.it | D111: 5 | E111: 132.7 | F111: =D111*E111 -> 663.5 | G111: 5 | H111: 106.16 | I111: =G111*H111 -> 530.8 | J111: =F111+I111 -> 1194.3 | K111: 1 | L111: 904.2954032 | M111: 1200
A112: 105 | B112: Soprintendenza archivistica e bibliografica per il Friuli Venezia Giulia | C112: sa-fvg@beniculturali.it | D112: 3 | E112: 132.7 | F112: 398.1 | G112: 1 | H112: 106.16 | I112: 106.16 | J112: 504.26 | K112: 1 | L112: 376.7897513 | M112: 500
A113: 106 | B113: Soprintendenza archivistica e bibliografica per il Lazio | D113: 7 | E113: 132.7 | F113: 928.9 | G113: 3 | H113: 106.16 | I113: 318.48 | J113: 1247.38 | K113: 1 | L113: 904.2954032 | M113: 1200
A114: 107 | B114: Soprintendenza archivistica per il Piemonte e la Valle d'Aosta | C114: sa-pva@beniculturali.it | D114: 5 | E114: 132.7 | F114: 663.5 | G114: 4 | H114: 106.16 | I114: 424.64 | J114: 1088.14 | K114: 1 | L114: 828.9374529 | M114: 1100
A115: 107 | B115: Soprintendenza archivistica e bibliografica per il Veneto e Trentino Alto Adige | D115: 7 | E115: 132.7 | F115: 928.9 | G115: 7 | H115: 106.16 | I115: 743.12 | J115: 1672.02 | K115: 1 | L115: 1205.727204 | M115: 1600
A116: 108 | B116: Soprintendenza archivistica e bibliografica per la Calabria | C116: sa-cal@beniculturali.it | D116: 8 | E116: 132.7 | F116: 1061.6 | G116: 9 | H116: 106.16 | I116: 955.44 | J116: 2017.04 | K116: 1 | L116: 1507.159005 | M116: 2000
A117: 108 | B117: Soprintendenza archivistica e bibliografica per la Campania | C117: sa-cal@beniculturali.it | D117: 8 | E117: 132.7 | F117: =D117*E117 -> 1061.6 | G117: 9 | H117: 106.16 | I117: =G117*H117 -> 955.44 | J117: =F117+I117 -> 2017.04 | K117: 1 | L117: 1507.159005 | M117: 2000
A118: 109 | B118: Soprintendenza archivistica e bibliografica per la Liguria | C118: sa-lig@beniculturali.it | D118: 2 | E118: 132.7 | F118: 265.4 | G118: 5 | H118: 106.16 | I118: 530.8 | J118: 796.2 | K118: 1 | L118: 602.8636021 | M118: 800
A119: 110 | B119: Soprintendenza archivistica e bibliografica per la Lombardia | C119: sa-lom@beniculturali.it | D119: 5 | E119: 132.7 | F119: 663.5 | G119: 3 | H119: 106.16 | I119: 318.48 | J119: 981.98 | K119: 1 | L119: 753.5795026 | M119: 1000
A120: 111 | B120: Soprintendenza archivistica e bibliografica per la Puglia e la Basilicata | C120: sa-pug@beniculturali.it | D120: 7 | E120: 132.7 | F120: 928.9 | G120: 12 | H120: 106.16 | I120: 1273.92 | J120: 2202.82 | K120: 1 | L120: 1582.516956 | M120: 2100
A121: 112 | B121: Soprintendenza archivistica per la Sardegna | C121: sa-sar@beniculturali.it | D121: 5 | E121: 132.7 | F121: 663.5 | G121: 5 | H121: 106.16 | I121: 530.8 | J121: 1194.3 | K121: 1 | L121: 904.2954032 | M121: 1200
A122: 113 | B122: Soprintendenza archivistica per la Sicilia | C122: sa-sic@beniculturali.it | D122: 5 | E122: 132.7 | F122: 663.5 | G122: 7 | H122: 106.16 | I122: 743.12 | J122: 1406.62 | K122: 1 | L122: 1055.011304 | M122: 1400
A123: 114 | B123: Soprintendenza archivistica e bibliografica per la Toscana | C123: sa-tos@beniculturali.it | D123: 7 | E123: 132.7 | F123: 928.9 | G123: 9 | H123: 106.16 | I123: 955.44 | J123: 1884.34 | K123: 1 | L123: 1356.443105 | M123: 1800
A124: 115 | B124: Soprintendenza archivistica e bibliografica per l'Abruzzo e Molise | C124: sa-abr@beniculturali.it | D124: 31 | E124: 132.7 | F124: 4113.7 | G124: 10 | H124: 106.16 | I124: 1061.6 | J124: 5175.3 | K124: 1 | L124: 3767.897513 | M124: 5000
A125: 116 | B125: Soprintendenza archivistica e bibliografica per l'Emilia Romagna | C125: sa-ero@beniculturali.it | D125: 4 | E125: 132.7 | F125: 530.8 | G125: 4 | H125: 106.16 | I125: 424.64 | J125: 955.44 | K125: 1 | L125: 753.5795026 | M125: 1000
A126: 117 | B126: Soprintendenza archivistica e bibliografica per l'Umbria e le Marche | C126: sa-umb@beniculturali.it | D126: 17 | E126: 132.7 | F126: 2255.9 | G126: 7 | H126: 106.16 | I126: 743.12 | J126: 2999.02 | K126: 1 | L126: 2260.738508 | M126: 3000
D127: =SUM(D8:D126) -> 704 | G127: =SUM(G8:G126) -> 1108
A128: BIBLIOTECHE PUBBLICHE STATALI
A129: 1 | B129: Biblioteca Angelica di Roma | D129: 5 | E129: 132.7 | F129: =D129*E129 -> 663.5 | G129: 3 | H129: 106.16 | I129: =G129*H129 -> 318.48 | J129: =F129+I129 -> 981.98 | K129: 1 | L129: =M129/1.327 -> 753.5795026 | M129: 1000
A130: 2 | B130: Biblioteca Braidense di Milano | C130: b-brai@beniculturali.it | D130: 3 | E130: 132.7 | F130: 398.1 | G130: 6 | H130: 106.16 | I130: 636.96 | J130: 1035.06 | K130: 1 | L130: 753.5795026 | M130: 1000
A131: 3 | B131: Biblioteca Casanatense di Roma | D131: 6 | E131: 132.7 | F131: 796.2 | G131: 6 | H131: 106.16 | I131: 636.96 | J131: 1433.16 | K131: 1 | L131: 1130.369254 | M131: 1500
A132: 4 | B132: Biblioteca del monumento nazionale dei Girolamini | D132: 5 | E132: 132.7 | F132: 663.5 | G132: 5 | H132: 106.16 | I132: 530.8 | J132: 1194.3 | K132: 1 | L132: 828.9374529 | M132: 1100
A133: 5 | B133: Biblioteca del monumento nazionale della Badia di Cava | D133: 2 | E133: 132.7 | F133: 265.4 | G133: 0 | H133: 106.16 | I133: 0 | J133: 265.4 | K133: 1 | L133: 301.4318011 | M133: 400
A134: 6 | B134: Biblioteca del monumento nazionale di Montecassino | D134: 2 | E134: 132.7 | F134: 265.4 | G134: 0 | H134: 106.16 | I134: 0 | J134: 265.4 | K134: 1 | L134: 301.4318011 | M134: 400
A135: 7 | B135: Biblioteca del monumento nazionale di S.Scolastica | D135: 3 | E135: 132.7 | F135: 398.1 | G135: 4 | H135: 106.16 | I135: 424.64 | J135: 822.74 | K135: 1 | L135: 602.8636021 | M135: 800
A136: 8 | B136: Biblioteca del monumento nazionale di Casamari | D136: 2 | E136: 132.7 | F136: 265.4 | G136: 6 | H136: 106.16 | I136: 636.96 | J136: 902.36 | K136: 1 | L136: 678.2215524 | M136: 900
A137: 9 | B137: Biblioteca del monumento nazionale di Farfa | D137: 2 | E137: 132.7 | F137: 265.4 | G137: 1 | H137: 106.16 | I137: 106.16 | J137: 371.56 | K137: 1 | L137: 301.4318011 | M137: 400
A138: 10 | B138: Biblioteca del Monumento nazionale di Grottaferrata | C138: bmn-grf@beniculturali.it | D138: 3 | E138: 132.7 | F138: 398.1 | G138: 7 | H138: 106.16 | I138: 743.12 | J138: 1141.22 | K138: 1 | L138: 828.9374529 | M138: 1100
A139: 11 | B139: Biblioteca del monumento nazionale di Montevergine | C139: bmn-mnv@beniculturali.it | D139: 8 | E139: 132.7 | F139: 1061.6 | G139: 5 | H139: 106.16 | I139: 530.8 | J139: 1592.4 | K139: 1 | L139: 1205.727204 | M139: 1600
A140: 12 | B140: Biblioteca di archeologia e storia dell'arte di Roma | D140: 4 | E140: 132.7 | F140: 530.8 | G140: 9 | H140: 106.16 | I140: 955.44 | J140: 1486.24 | K140: 1 | L140: 1130.369254 | M140: 1500
A141: 13 | B141: Biblioteca di storia moderna e contemporanea di Roma | C141: b-stmo@beniculturali.it | D141: 6 | E141: 132.7 | F141: 796.2 | G141: 9 | H141: 106.16 | I141: 955.44 | J141: 1751.64 | K141: 1 | L141: 1281.085154 | M141: 1700
A142: 14 | B142: Biblioteca estense universitaria di Modena | C142: b-este@beniculturali.it | D142: 4 | E142: 132.7 | F142: 530.8 | G142: 19 | H142: 106.16 | I142: 2017.04 | J142: 2547.84 | K142: 1 | L142: 1883.948757 | M142: 2500
A143: 15 | B143: Biblioteca Marciana di Venezia | C143: b-marc@beniculturali.it | D143: 5 | E143: 132.7 | F143: 663.5 | G143: 13 | H143: 106.16 | I143: 1380.08 | J143: 2043.58 | K143: 1 | L143: 1507.159005 | M143: 2000
A144: 16 | B144: Biblioteca Marucelliana di Firenze | C144: b-maru@beniculturali.it | D144: 6 | E144: 132.7 | F144: 796.2 | G144: 8 | H144: 106.16 | I144: 849.28 | J144: 1645.48 | K144: 1 | L144: 1205.727204 | M144: 1600
A145: 17 | B145: Biblioteca medica statale di Roma | D145: 2 | E145: 132.7 | F145: 265.4 | G145: 5 | H145: 106.16 | I145: 530.8 | J145: 796.2 | K145: 1 | L145: 602.8636021 | M145: 800
A146: 18 | B146: Biblioteca Medicea Laurenziana di Firenze | D146: 2 | E146: 132.7 | F146: 265.4 | G146: 5 | H146: 106.16 | I146: 530.8 | J146: 796.2 | K146: 1 | L146: 602.8636021 | M146: 800
A147: 19 | B147: Biblioteca Monumento nazionale Abbazia di Trisulti | D147: 2 | E147: 132.7 | F147: 265.4 | G147: 3 | H147: 106.16 | I147: 318.48 | J147: 583.88 | K147: 1 | L147: 452.1477016 | M147: 600
A148: 20 | B148: Biblioteca Nazionale centrale di Firenze | C148: bnc-fi@beniculturali.it | D148: 30 | E148: 132.7 | F148: 3981 | G148: 62 | H148: 106.16 | I148: 6581.92 | J148: 10562.92 | K148: 1 | L148: 8816.880181 | M148: 11700
A149: 21 | B149: Biblioteca Nazionale centrale di Roma | C149: bnc-rm@beniculturali.it | D149: 37 | E149: 132.7 | F149: 4909.9 | G149: 75 | H149: 106.16 | I149: 7962 | J149: 12871.9 | K149: 1 | L149: 10550.11304 | M149: 14000
A150: 22 | B150: Biblioteca nazionale di Bari | C150: bn-ba@beniculturali.it | D150: 3 | E150: 132.7 | F150: 398.1 | G150: 8 | H150: 106.16 | I150: 849.28 | J150: 1247.38 | K150: 1 | L150: 979.6533534 | M150: 1300
A151: 23 | B151: Biblioteca nazionale di Cosenza | D151: 25 | E151: 132.7 | F151: 3317.5 | G151: 30 | H151: 106.16 | I151: 3184.8 | J151: 6502.3 | K151: 1 | L151: 4898.266767 | M151: 6500
A152: 24 | B152: Biblioteca nazionale di Napoli - Vittorio Emanuele III | C152: bn-na@beniculturali.it | D152: 60 | E152: 132.7 | F152: 7962 | G152: 105 | H152: 106.16 | I152: 11146.8 | J152: 19108.8 | K152: 1 | L152: 14318.01055 | M152: 19000
A153: 25 | B153: Biblioteca nazionale di Potenza | C153: bn-pz@beniculturali.it | D153: 15 | E153: 132.7 | F153: 1990.5 | G153: 21 | H153: 106.16 | I153: 2229.36 | J153: 4219.86 | K153: 1 | L153: 3165.033911 | M153: 4200
A154: 26 | B154: Biblioteca nazionale universitaria di Torino | C154: bu-to@beniculturali.it | D154: 3 | E154: 132.7 | F154: 398.1 | G154: 30 | H154: 106.16 | I154: 3184.8 | J154: 3582.9 | K154: 1 | L154: 2637.528259 | M154: 3500
A155: 27 | B155: Biblioteca Palatina di Parma | D155: 5 | E155: 132.7 | F155: 663.5 | G155: 6 | H155: 106.16 | I155: 636.96 | J155: 1300.46 | K155: 1 | L155: 979.6533534 | M155: 1300
A156: 28 | B156: Biblioteca reale di Torino | D156: 2 | E156: 132.7 | F156: 265.4 | G156: 6 | H156: 106.16 | I156: 636.96 | J156: 902.36 | K156: 1 | L156: 678.2215524 | M156: 900
A157: 29 | B157: Biblioteca Riccardiana di Firenze | D157: 3 | E157: 132.7 | F157: 398.1 | G157: 8 | H157: 106.16 | I157: 849.28 | J157: 1247.38 | K157: 1 | L157: 979.6533534 | M157: 1300
A158: 30 | B158: Biblioteca statale "A.Baldini" di Roma | D158: 6 | E158: 132.7 | F158: 796.2 | G158: 8 | H158: 106.16 | I158: 849.28 | J158: 1645.48 | K158: 1 | L158: 1205.727204 | M158: 1600
A159: 31 | B159: Biblioteca statale del Monumento nazionale di Santa Giustina Padova | D159: 3 | E159: 132.7 | F159: 398.1 | G159: 0 | H159: 106.16 | I159: 0 | J159: 398.1 | K159: 1 | L159: 301.4318011 | M159: 400
A160: 32 | B160: Biblioteca statale di Cremona | C160: bs-cr@beniculturali.it | D160: 6 | E160: 132.7 | F160: 796.2 | G160: 8 | H160: 106.16 | I160: 849.28 | J160: 1645.48 | K160: 1 | L160: 1205.727204 | M160: 1600
A161: 33 | B161: Biblioteca statale di Lucca | C161: bs-lu@beniculturali.it | D161: 3 | E161: 132.7 | F161: =D161*E161 -> 398.1 | G161: 4 | H161: 106.16 | I161: =G161*H161 -> 424.64 | J161: =F161+I161 -> 822.74 | K161: 1 | L161: 602.8636021 | M161: 800
A162: 34 | B162: Biblioteca statale di Macerata | C162: bs-mc@beniculturali.it | D162: 3 | E162: 132.7 | F162: 398.1 | G162: 3 | H162: 106.16 | I162: 318.48 | J162: 716.58 | K162: 1 | L162: 527.5056518 | M162: 700
A163: 35 | B163: Biblioteca statale di Trieste | C163: bs-ts@beniculturali.it | D163: 2 | E163: 132.7 | F163: 265.4 | G163: 7 | H163: 106.16 | I163: 743.12 | J163: 1008.52 | K163: 1 | L163: 753.5795026 | M163: 1000
A164: 36 | B164: Biblioteca statale Isontina di Gorizia | C164: bs-ison@beniculturali.it | D164: 3 | E164: 132.7 | F164: 398.1 | G164: 7 | H164: 106.16 | I164: 743.12 | J164: 1141.22 | K164: 1 | L164: 828.9374529 | M164: 1100
A165: 37 | B165: Biblioteca Universitaria Alessandrina di Roma | C165: bu-ales@beniculturali.it | D165: 3 | E165: 132.7 | F165: 398.1 | G165: 10 | H165: 106.16 | I165: 1061.6 | J165: 1459.7 | K165: 1 | L165: 1055.011304 | M165: 1400
A166: 38 | B166: Biblioteca universitaria di Bologna | D166: 3 | E166: 132.7 | F166: 398.1 | G166: 4 | H166: 106.16 | I166: 424.64 | J166: 822.74 | K166: 1 | L166: 602.8636021 | M166: 800
A167: 39 | B167: Biblioteca universitaria di Cagliari | C167: bu-ca@beniculturali.it | D167: 6 | E167: 132.7 | F167: 796.2 | G167: 36 | H167: 106.16 | I167: 3821.76 | J167: 4617.96 | K167: 1 | L167: 3391.107762 | M167: 4500
A168: 40 | B168: Biblioteca universitaria di Genova | C168: bu-ge@beniculturali.it | D168: 6 | E168: 132.7 | F168: 796.2 | G168: 8 | H168: 106.16 | I168: 849.28 | J168: 1645.48 | K168: 1 | L168: 1205.727204 | M168: 1600
A169: 41 | B169: Biblioteca universitaria di Napoli | C169: bu-na@beniculturali.it | D169: 5 | E169: 132.7 | F169: 663.5 | G169: 25 | H169: 106.16 | I169: 2654 | J169: 3317.5 | K169: 1 | L169: 2486.812359 | M169: 3300
A170: 42 | B170: Biblioteca universitaria di Padova | C170: bu-pd@beniculturali.it | D170: 4 | E170: 132.7 | F170: 530.8 | G170: 14 | H170: 106.16 | I170: 1486.24 | J170: 2017.04 | K170: 1 | L170: 1507.159005 | M170: 2000
A171: 43 | B171: Biblioteca universitaria di Pavia | C171: bu-pv@beniculturali.it | D171: 6 | E171: 132.7 | F171: 796.2 | G171: 6 | H171: 106.16 | I171: 636.96 | J171: 1433.16 | K171: 1 | L171: 1130.369254 | M171: 1500
A172: 44 | B172: Biblioteca universitaria di Pisa | D172: 7 | E172: 132.7 | F172: 928.9 | G172: 15 | H172: 106.16 | I172: 1592.4 | J172: 2521.3 | K172: 1 | L172: 1883.948757 | M172: 2500
A173: 45 | B173: Biblioteca universitaria di Sassari | C173: bu-ss@beniculturali.it | D173: 3 | E173: 132.7 | F173: 398.1 | G173: 13 | H173: 106.16 | I173: 1380.08 | J173: 1778.18 | K173: 1 | L173: 1356.443105 | M173: 1800
A174: 46 | B174: Biblioteca Vallicelliana di Roma | C174: b-vall@beniculturali.it | D174: 4 | E174: 132.7 | F174: 530.8 | G174: 6 | H174: 106.16 | I174: 636.96 | J174: 1167.76 | K174: 1 | L174: 828.9374529 | M174: 1100
A175: 47 | B175: Centro per il libro e la lettura | C175: c-ll@beniculturali.it | D175: 10 | E175: 132.7 | F175: 1327 | G175: 9 | H175: 106.16 | I175: 955.44 | J175: 2282.44 | K175: 1 | L175: 1657.874906 | M175: 2200
A176: 48 | B176: Istituto Centrale per i Beni Sonori ed Audiovisivi | D176: 10 | E176: 132.7 | F176: 1327 | G176: 13 | H176: 106.16 | I176: 1380.08 | J176: 2707.08 | K176: 1 | L176: 2034.664657 | M176: 2700
A177: 49 | B177: L'Istituto Centrale per il Catalogo Unico delle biblioteche italiane e per le informazioni bibliografiche | C177: ic-cu@beniculturali.it | D177: 10 | E177: 132.7 | F177: 1327 | G177: 12 | H177: 106.16 | I177: 1273.92 | J177: 2600.92 | K177: 1 | L177: 1959.306707 | M177: 2600
J178: =SUM(J8:J177) -> 329998.36 | K178: Totale complessivo | L178: =SUM(L8:L177) -> 248681.2359 | M178: =SUM(M8:M177) -> 330000
